fUSD/lending_fUSD_20251201
["ID","MTS","AMOUNT","RATE_DAILY","PERIOD"]
[395254352,1764571841062,-150.0,0.00012873,2]
[395254353,1764571841072,-150.0,0.00012873,2]
[395254354,1764571841083,-500.0,0.00012873,2]
[395254355,1764571841092,-500.0,0.00012873,2]
[395254356,1764571841102,-9999.99,0.00012959,2]
[395254357,1764571841112,-150.99,0.00012959,2]
[395254358,1764571841125,-150.0,0.00012959,2]
[395254359,1764571841134,-150.0,0.00012959,2]
[395254360,1764571841143,-500.0,0.00012959,2]
[395254361,1764571841153,-225.27423133,0.00012959,2]
[395254362,1764571841162,-417.0,0.00012959,2]
[395254363,1764571841172,-500.0,0.00012959,2]
[395254364,1764571841182,-1865.0,0.00012959,2]
[395254365,1764571841192,-5439.99,0.0001296,2]
[395254366,1764571841202,-249.779,0.0001296,2]
[395254367,1764571841212,-9999.99,0.0001296,2]
[395254368,1764571841222,-64229.98,0.0001296,2]
[395254369,1764571841232,-1863.9,0.0001296,2]
[395254370,1764571841241,-299.99,0.0001296,2]
[395254371,1764571841251,-999.99,0.0001296,2]
[395254372,1764571841260,-150.99,0.0001296,2]
[395254373,1764571841269,-4565.0,0.00012961,2]
[395254374,1764571841279,-150.0,0.0001301,2]
[395254375,1764571841288,-150.0,0.0001301,2]
[395254376,1764571841298,-500.0,0.0001301,2]
[395254377,1764571841307,-150.0,0.0001301,2]
[395254378,1764571841316,-163.45254521,0.0001301,2]
[395254379,1764571841326,-500.0,0.0001301,2]
[395254380,1764571841335,-500.0,0.0001301,2]
[395254381,1764571841345,-166.66,0.00013044,2]
[395254382,1764571841354,-278.76545568,0.00013096,2]
[395254383,1764571841363,-268.2703708,0.00013096,2]
[395254384,1764571841372,-500.0,0.00013096,2]
[395254385,1764571841391,-417.0,0.00013096,2]
[395254386,1764571841402,-500.0,0.00013096,2]
[395254387,1764571841412,-1865.0,0.00013096,2]
[395254388,1764571841421,-37661.41393705,0.00013098,2]
[395254389,1764571841431,-1000.0,0.00013098,2]
[395254390,1764571841440,-2500.0,0.00013098,2]
[395254391,1764571841450,-2368.86,0.0001312,2]
[395254392,1764571841459,-1575.36,0.00013142,2]
[395254393,1764571841468,-150.0,0.00013147,2]
[395254394,1764571841478,-150.0,0.00013147,2]
[395254395,1764571841487,-500.0,0.00013147,2]
[395254396,1764571841497,-200.0,0.00013147,2]
[395254397,1764571841506,-500.0,0.00013147,2]
[395254398,1764571841516,-500.0,0.00013147,2]
[395254399,1764571841525,-3670.1459,0.00013178,2]
[395254400,1764571841535,-212.66437805,0.00013198,2]
[395254401,1764571841544,-150.0,0.00013198,2]
[395254402,1764571841554,-150.0,0.00013198,2]
[395254403,1764571841564,-150.0,0.00013198,2]
[395254404,1764571841573,-150.0,0.00013198,2]
[395254405,1764571841582,-252.7415751,0.00013198,2]
[395254406,1764571841591,-12614.97504213,0.00013198,2]
[395254407,1764571841601,-425.64641507,0.00013233,2]
[395254408,1764571841610,-417.0,0.00013233,2]
[395254409,1764571841619,-500.0,0.00013233,2]
[395254410,1764571841629,-1865.0,0.00013233,2]
[395254411,1764571841639,-1045.4,0.00013276,2]
[395254412,1764571841648,-186.65279503,0.00013284,2]
[395254413,1764571841657,-255.55740225,0.00013284,2]
[395254414,1764571841667,-500.0,0.00013284,2]
[395254415,1764571841676,-500.0,0.00013284,2]
[395254416,1764571841685,-500.0,0.00013284,2]
[395254417,1764571841695,-200.0,0.0001329,2]
[395254418,1764571841704,-158.7326939,0.0001329,2]
[395254419,1764571841713,-500.0,0.0001329,2]
[395254420,1764571841722,-500.0,0.0001329,2]
[395254421,1764571841732,-500.0,0.0001329,2]
[395254422,1764571841741,-500.0,0.0001329,2]
[395254423,1764571841750,-500.0,0.0001329,2]
[395254424,1764571841760,-500.0,0.0001329,2]
[395254425,1764571841770,-500.0,0.0001329,2]
[395254426,1764571841779,-500.0,0.0001329,2]
[395254427,1764571841789,-500.0,0.0001329,2]
[395254428,1764571841798,-151.0,0.0001329,2]
[395254429,1764571841807,-500.0,0.0001329,2]
[395254430,1764571841817,-151.0,0.0001329,2]
[395254431,1764571841826,-500.0,0.0001329,2]
[395254432,1764571841835,-500.0,0.0001329,2]
[395254433,1764571841845,-500.0,0.0001329,2]
[395254434,1764571841854,-151.0,0.0001329,2]
[395254435,1764571841864,-500.0,0.0001329,2]
[395254436,1764571841873,-151.0,0.0001329,2]
[395254437,1764571841883,-151.0,0.0001329,2]
[395254438,1764571841893,-151.0,0.0001329,2]
[395254439,1764571841902,-151.0,0.0001329,2]
[395254440,1764571841911,-151.0,0.0001329,2]
[395254441,1764571841920,-151.0,0.0001329,2]
[395254442,1764571841930,-151.0,0.0001329,2]
[395254443,1764571841939,-151.0,0.0001329,2]
[395254444,1764571841948,-151.0,0.0001329,2]
[395254445,1764571841958,-151.0,0.0001329,2]
[395254446,1764571841967,-151.0,0.0001329,2]
[395254447,1764571841976,-151.0,0.0001329,2]
[395254448,1764571841985,-151.0,0.0001329,2]
[395254449,1764571841995,-151.0,0.0001329,2]
[395254450,1764571842004,-151.0,0.0001329,2]
[395254451,1764571842013,-151.0,0.0001329,2]
[395254452,1764571842023,-151.0,0.0001329,2]
[395254453,1764571842032,-151.0,0.0001329,2]
[395254454,1764571842042,-151.0,0.0001329,2]
[395254455,1764571842056,-151.0,0.0001329,2]
[395254456,1764571842067,-151.0,0.0001329,2]
[395254457,1764571842076,-151.0,0.0001329,2]
[395254458,1764571842087,-151.0,0.0001329,2]
[395254459,1764571842097,-200.0,0.0001329,2]
[395254460,1764571842107,-151.0,0.0001329,2]
[395254461,1764571842116,-151.0,0.0001329,2]
[395254462,1764571842126,-151.0,0.0001329,2]
[395254463,1764571842136,-151.0,0.0001329,2]
[395254464,1764571842145,-500.0,0.0001329,2]
[395254465,1764571842155,-151.0,0.0001329,2]
[395254466,1764571842164,-500.0,0.0001329,2]
[395254467,1764571842174,-151.0,0.0001329,2]
[395254468,1764571842183,-500.0,0.0001329,2]
[395254469,1764571842193,-151.0,0.0001329,2]
[395254470,1764571842202,-500.0,0.0001329,2]
[395254471,1764571842212,-151.0,0.0001329,2]
[395254472,1764571842222,-500.0,0.0001329,2]
[395254473,1764571842231,-500.0,0.0001329,2]
[395254474,1764571842241,-500.0,0.0001329,2]
[395254475,1764571842251,-500.0,0.0001329,2]
[395254476,1764571842260,-500.0,0.0001329,2]
[395254477,1764571842270,-500.0,0.0001329,2]
[395254478,1764571842280,-500.0,0.0001329,2]
[395254479,1764571842289,-500.0,0.0001329,2]
[395254480,1764571842298,-500.0,0.0001329,2]
[395254481,1764571842307,-500.0,0.0001329,2]
[395254482,1764571842316,-500.0,0.0001329,2]
[395254483,1764571842326,-200.0,0.0001329,2]
[395254484,1764571842335,-4736.8417,0.00013298,2]
[395254485,1764571842344,-1000.0,0.00013298,2]
[395254486,1764571842354,-250.0,0.0001331,2]
[395254487,1764571842363,-193.0,0.0001331,2]
[395254488,1764571842372,-150.0,0.00013335,2]
[395254489,1764571842381,-150.0,0.00013335,2]
[395254490,1764571842390,-150.0,0.00013335,2]
[395254491,1764571842400,-150.0,0.00013335,2]
[395254492,1764571842409,-2063.6036669,0.00013351,2]
[395254493,1764571842419,-417.0,0.0001337,2]
[395254494,1764571842429,-500.0,0.0001337,2]
[395254495,1764571842439,-1865.0,0.0001337,2]
[395254496,1764571842450,-1575.36,0.00013416,2]
[395254497,1764571842461,-151.0,0.00013418,2]
[395254498,1764571842472,-975.59481342,0.00013421,2]
[395254499,1764571842482,-1000.0,0.00013421,2]
[395254500,1764571842491,-501.00569167,0.00013421,2]
[395254501,1764571842501,-507.34097889,0.00013421,2]
[395254502,1764571842511,-508.35390567,0.00013421,2]
[395254503,1764571842520,-509.2603075,0.00013421,2]
[395254504,1764571842530,-1002.31396742,0.00013421,2]
[395254505,1764571842540,-1000.0,0.00013421,2]
[395254506,1764571842549,-500.0,0.00013421,2]
[395254507,1764571842559,-1000.0,0.00013421,2]
[395254508,1764571842568,-1000.0,0.00013421,2]
[395254509,1764571842578,-1000.0,0.00013421,2]
[395254510,1764571842587,-500.0,0.00013421,2]
[395254511,1764571842596,-1000.0,0.00013421,2]
[395254512,1764571842606,-1000.0,0.00013421,2]
[395254513,1764571842615,-1001.51277925,0.00013421,2]
[395254514,1764571842625,-963.74871303,0.00013421,2]
[395254515,1764571842634,-500.0,0.00013421,2]
[395254516,1764571842643,-500.0,0.00013421,2]
[395254517,1764571842653,-500.0,0.00013421,2]
[395254518,1764571842663,-75760.91854617,0.00013452,2]
[395254519,1764571842672,-166.66,0.00013461,2]
[395254520,1764571842681,-207.38496735,0.00013472,2]
[395254521,1764571842691,-150.0,0.00013472,2]
[395254522,1764571842700,-215.9215938,0.00013472,2]
[395254523,1764571842709,-150.0,0.00013472,2]
[395254524,1764571842718,-417.0,0.00013507,2]
[395254525,1764571842727,-500.0,0.00013507,2]
[395254526,1764571842739,-1865.0,0.00013507,2]
[395254527,1764571842748,-37661.41393697,0.0001352,2]
[395254528,1764571842758,-500.0,0.00013558,2]
[395254529,1764571842768,-500.0,0.00013558,2]
[395254530,1764571842777,-500.0,0.00013558,2]
[395254531,1764571842786,-1931.13207761,0.00013599,2]
[395254532,1764571842796,-150.0,0.00013609,2]
[395254533,1764571842805,-212.94335419,0.00013609,2]
[395254534,1764571842815,-12614.97504208,0.00013609,2]
[395254535,1764571842824,-417.0,0.00013644,2]
[395254536,1764571842834,-500.0,0.00013644,2]
[395254537,1764571842844,-1865.0,0.00013644,2]
[395254538,1764571842853,-1575.36,0.0001369,2]
[395254539,1764571842862,-500.0,0.00013695,2]
[395254540,1764571842871,-500.0,0.00013695,2]
[395254541,1764571842881,-500.0,0.00013695,2]
[395254542,1764571842890,-500.0,0.00013698,2]
[395254543,1764571842900,-500.0,0.00013698,2]
[395254544,1764571842909,-500.0,0.00013698,2]
[395254545,1764571842919,-500.0,0.00013698,2]
[395254546,1764571842928,-500.0,0.00013698,2]
[395254547,1764571842938,-500.0,0.00013698,2]
[395254548,1764571842948,-500.0,0.00013698,2]
[395254549,1764571842958,-500.0,0.00013698,2]
[395254550,1764571842967,-500.0,0.00013698,2]
[395254551,1764571842976,-500.0,0.00013698,2]
[395254552,1764571842986,-500.0,0.00013698,2]
[395254553,1764571842996,-500.0,0.00013698,2]
[395254554,1764571843006,-500.0,0.00013698,2]
[395254555,1764571843016,-500.0,0.00013698,2]
[395254556,1764571843025,-568.76021857,0.00013698,2]
[395254557,1764571843034,-500.0,0.00013698,2]
[395254559,1764571843044,-500.0,0.00013698,2]
[395254561,1764571843057,-500.0,0.00013698,2]
[395254562,1764571843067,-1754.29,0.00013698,2]
[395254563,1764571843077,-1754.29,0.00013698,2]
[395254565,1764571843087,-1754.29,0.00013698,2]
[395254567,1764571843097,-500.0,0.00013698,2]
[395254568,1764571843108,-500.0,0.00013698,2]
[395254569,1764571843117,-500.0,0.00013698,2]
[395254570,1764571843128,-500.0,0.00013698,2]
[395254571,1764571843138,-500.0,0.00013698,2]
[395254572,1764571843148,-500.0,0.00013698,2]
[395254573,1764571843157,-500.0,0.00013698,2]
[395254574,1764571843166,-500.0,0.00013698,2]
[395254576,1764571843176,-500.0,0.00013698,2]
[395254577,1764571843186,-500.0,0.00013698,2]
[395254578,1764571843197,-500.0,0.00013698,2]
[395254579,1764571843206,-500.0,0.00013698,2]
[395254580,1764571843216,-500.0,0.00013698,2]
[395254581,1764571843227,-500.0,0.00013698,2]
[395254582,1764571843237,-500.0,0.00013698,2]
[395254583,1764571843247,-800.86,0.00013698,2]
[395254584,1764571843259,-800.86,0.00013698,2]
[395254585,1764571843269,-800.86,0.00013698,2]
[395254586,1764571843280,-500.0,0.00013698,2]
[395254589,1764571843290,-500.0,0.00013698,2]
[395254591,1764571843300,-500.0,0.00013698,2]
[395254592,1764571843309,-500.0,0.00013698,2]
[395254593,1764571843320,-500.0,0.00013698,2]
[395254594,1764571843329,-559.01212268,0.00013698,2]
[395254595,1764571843339,-5156.82,0.00013698,2]
[395254596,1764571843350,-5156.82,0.00013698,2]
[395254597,1764571843360,-5156.82,0.00013698,2]
[395254598,1764571843370,-500.0,0.00013698,2]
[395254599,1764571843380,-500.0,0.00013698,2]
[395254600,1764571843390,-500.0,0.00013698,2]
[395254601,1764571843400,-500.0,0.00013698,2]
[395254602,1764571843411,-500.0,0.00013698,2]
[395254603,1764571843421,-500.0,0.00013698,2]
[395254604,1764571843431,-500.0,0.00013698,2]
[395254605,1764571843442,-500.0,0.00013698,2]
[395254606,1764571843452,-500.0,0.00013698,2]
[395254607,1764571843462,-500.0,0.00013698,2]
[395254608,1764571843471,-500.0,0.00013698,2]
[395254609,1764571843482,-500.0,0.00013698,2]
[395254610,1764571843491,-500.0,0.00013698,2]
[395254611,1764571843502,-500.0,0.00013698,2]
[395254612,1764571843512,-500.0,0.00013698,2]
[395254613,1764571843522,-541.73135515,0.00013698,2]
[395254614,1764571843532,-1190.72,0.00013698,2]
[395254615,1764571843542,-1190.72,0.00013698,2]
[395254616,1764571843551,-1190.72,0.00013698,2]
[395254617,1764571843561,-1190.72,0.00013698,2]
[395254618,1764571843570,-1190.72,0.00013698,2]
[395254619,1764571843579,-1190.72,0.00013698,2]
[395254620,1764571843588,-1190.72,0.00013698,2]
[395254621,1764571843598,-1190.72,0.00013698,2]
[395254622,1764571843607,-1190.72,0.00013698,2]
[395254623,1764571843616,-1190.72,0.00013698,2]
[395254624,1764571843625,-1190.72,0.00013698,2]
[395254625,1764571843635,-1190.72,0.00013698,2]
[395254626,1764571843647,-1190.72,0.00013698,2]
[395254627,1764571843658,-1190.72,0.00013698,2]
[395254628,1764571843668,-1190.72,0.00013698,2]
[395254629,1764571843677,-1190.72,0.00013698,2]
[395254630,1764571843687,-1190.72,0.00013698,2]
[395254631,1764571843696,-1190.72,0.00013698,2]
[395254632,1764571843705,-1190.72,0.00013698,2]
[395254633,1764571843714,-1190.72,0.00013698,2]
[395254634,1764571843723,-1190.72,0.00013698,2]
[395254635,1764571843734,-1190.72,0.00013698,2]
[395254636,1764571843743,-1190.72,0.00013698,2]
[395254637,1764571843753,-1190.87522195,0.00013698,2]
[395254638,1764571843762,-500.0,0.00013698,2]
[395254639,1764571843773,-500.0,0.00013698,2]
[395254640,1764571843782,-500.0,0.00013698,2]
[395254641,1764571843792,-500.0,0.00013698,2]
[395254642,1764571843801,-500.0,0.00013698,2]
[395254643,1764571843811,-500.0,0.00013698,2]
[395254644,1764571843820,-500.0,0.00013698,2]
[395254645,1764571843830,-500.0,0.00013698,2]
[395254646,1764571843839,-500.0,0.00013698,2]
[395254647,1764571843848,-500.0,0.00013698,2]
[395254648,1764571843858,-500.0,0.00013698,2]
[395254649,1764571843868,-500.0,0.00013698,2]
[395254650,1764571843877,-500.0,0.00013698,2]
[395254651,1764571843887,-484.18397562,0.00013698,2]
[395254652,1764571843896,-567.86060721,0.00013698,2]
[395254653,1764571843905,-500.0,0.00013698,2]
[395254654,1764571843915,-500.0,0.00013698,2]
[395254655,1764571843924,-500.0,0.00013698,2]
[395254656,1764571843934,-500.0,0.00013698,2]
[395254657,1764571843945,-500.0,0.00013698,2]
[395254658,1764571843954,-500.0,0.00013698,2]
[395254659,1764571843964,-500.0,0.00013698,2]
[395254660,1764571843973,-500.0,0.00013698,2]
[395254661,1764571843983,-500.0,0.00013698,2]
[395254662,1764571843992,-500.0,0.00013698,2]
[395254663,1764571844001,-500.0,0.00013698,2]
[395254664,1764571844011,-500.0,0.00013698,2]
[395254665,1764571844021,-500.0,0.00013698,2]
[395254666,1764571844030,-500.0,0.00013698,2]
[395254667,1764571844043,-500.0,0.00013698,2]
[395254668,1764571844053,-500.0,0.00013698,2]
[395254669,1764571844063,-500.0,0.00013698,2]
[395254670,1764571844072,-500.0,0.00013698,2]
[395254671,1764571844083,-593.21617524,0.00013698,2]
[395254672,1764571844093,-500.0,0.00013698,2]
[395254673,1764571844103,-500.0,0.00013698,2]
[395254674,1764571844113,-501.94091737,0.00013698,2]
[395254675,1764571844127,-500.0,0.00013698,2]
[395254676,1764571844136,-500.0,0.00013698,2]
[395254677,1764571844146,-500.0,0.00013698,2]
[395254678,1764571844156,-500.0,0.00013698,2]
[395254679,1764571844166,-500.3,0.00013698,2]
[395254680,1764571844176,-500.3,0.00013698,2]
[395254681,1764571844186,-500.3,0.00013698,2]
[395254682,1764571844195,-500.3,0.00013698,2]
[395254683,1764571844205,-500.0,0.00013698,2]
[395254684,1764571844215,-500.0,0.00013698,2]
[395254685,1764571844225,-500.0,0.00013698,2]
[395254686,1764571844235,-500.0,0.00013698,2]
[395254687,1764571844244,-500.0,0.00013698,2]
[395254688,1764571844254,-500.0,0.00013698,2]
[395254689,1764571844264,-500.0,0.00013698,2]
[395254690,1764571844274,-500.0,0.00013698,2]
[395254691,1764571844284,-500.0,0.00013698,2]
[395254692,1764571844294,-500.0,0.00013698,2]
[395254693,1764571844303,-500.0,0.00013698,2]
[395254694,1764571844314,-500.0,0.00013698,2]
[395254695,1764571844324,-300.0,0.00013698,2]
[395254696,1764571844333,-300.0,0.00013698,2]
[395254697,1764571844342,-300.0,0.00013698,2]
[395254698,1764571844352,-349.89110636,0.00013698,2]
[395254699,1764571844361,-500.0,0.00013698,2]
[395254700,1764571844371,-500.0,0.00013698,2]
[395254701,1764571844381,-500.0,0.00013698,2]
[395254702,1764571844391,-500.0,0.00013698,2]
[395254703,1764571844400,-500.0,0.00013698,2]
[395254704,1764571844409,-500.0,0.00013698,2]
[395254705,1764571844420,-500.0,0.00013698,2]
[395254706,1764571844429,-500.0,0.00013698,2]
[395254707,1764571844439,-500.0,0.00013698,2]
[395254708,1764571844448,-500.0,0.00013698,2]
[395254709,1764571844458,-500.0,0.00013698,2]
[395254710,1764571844467,-500.0,0.00013698,2]
[395254711,1764571844477,-500.0,0.00013698,2]
[395254712,1764571844488,-500.0,0.00013698,2]
[395254713,1764571844498,-500.0,0.00013698,2]
[395254714,1764571844510,-500.0,0.00013698,2]
[395254715,1764571844521,-1639.03,0.00013698,2]
[395254716,1764571844531,-1639.03,0.00013698,2]
[395254717,1764571844540,-1639.03,0.00013698,2]
[395254718,1764571844549,-1639.03,0.00013698,2]
[395254719,1764571844558,-1639.03,0.00013698,2]
[395254720,1764571844567,-1639.03,0.00013698,2]
[395254721,1764571844578,-1639.03,0.00013698,2]
[395254722,1764571844589,-1639.03,0.00013698,2]
[395254723,1764571844599,-1639.03,0.00013698,2]
[395254724,1764571844608,-1639.03,0.00013698,2]
[395254725,1764571844618,-1639.03,0.00013698,2]
[395254726,1764571844628,-1639.03,0.00013698,2]
[395254727,1764571844638,-1639.03,0.00013698,2]
[395254728,1764571844648,-1639.03,0.00013698,2]
[395254729,1764571844657,-1639.03,0.00013698,2]
[395254730,1764571844666,-1639.03,0.00013698,2]
[395254731,1764571844676,-1639.03,0.00013698,2]
[395254732,1764571844686,-1639.03,0.00013698,2]
[395254733,1764571844695,-1639.03,0.00013698,2]
[395254734,1764571844704,-1639.03,0.00013698,2]
[395254735,1764571844714,-1639.03,0.00013698,2]
[395254736,1764571844725,-1639.03,0.00013698,2]
[395254737,1764571844737,-1639.03,0.00013698,2]
[395254738,1764571844748,-1639.22377214,0.00013698,2]
[395254739,1764571844759,-500.0,0.00013698,2]
[395254740,1764571844768,-1000.0,0.00013699,2]
[395254741,1764571844778,-612.07,0.00013699,2]
[395254742,1764571844787,-600.0,0.00013699,2]
[395254743,1764571844797,-500.0,0.00013699,2]
[395254744,1764571844806,-500.0,0.00013699,2]
[395254745,1764571844816,-197.65335053,0.00013699,2]
[395254746,1764571844825,-500.0,0.00013699,2]
[395254747,1764571844835,-500.0,0.00013699,2]
[395254748,1764571844845,-500.0,0.00013699,2]
[395254749,1764571844854,-500.0,0.00013699,2]
[395254750,1764571844863,-500.0,0.00013699,2]
[395254751,1764571844872,-500.0,0.00013699,2]
[395254752,1764571844882,-500.0,0.00013699,2]
[395254753,1764571844892,-500.0,0.0001372,2]
[395254754,1764571844902,-500.0,0.0001372,2]
[395254755,1764571844911,-500.3,0.0001372,2]
[395254756,1764571845186,-500.0,0.0001372,2]
[395254757,1764571845196,-500.0,0.0001372,2]
[395254758,1764571845206,-500.0,0.0001372,2]
[395254759,1764571845215,-500.0,0.0001372,2]
[395254760,1764571845225,-500.0,0.0001372,2]
[395254761,1764571845235,-628.88445166,0.0001372,2]
[395254762,1764571845245,-500.0,0.0001372,2]
[395254763,1764571845254,-180.65552809,0.00013746,2]
[395254764,1764571845263,-417.0,0.00013781,2]
[395254765,1764571845277,-500.0,0.00013781,2]
[395254766,1764571845288,-1865.0,0.00013781,2]
[395254767,1764571845298,-500.0,0.00013832,2]
[395254768,1764571845307,-500.0,0.00013832,2]
[395254769,1764571845318,-500.0,0.00013832,2]
[395254770,1764571845328,-200.0,0.00013838,2]
[395254771,1764571845338,-500.0,0.00013838,2]
[395254772,1764571845348,-200.0,0.00013838,2]
[395254773,1764571845357,-166.66,0.00013877,2]
[395254774,1764571845367,-417.0,0.00013918,2]
[395254775,1764571845377,-500.0,0.00013918,2]
[395254776,1764571845387,-1865.0,0.00013918,2]
[395254777,1764571845397,-2063.6036669,0.00013943,2]
[395254778,1764571845407,-37661.41393697,0.00013943,2]
[395254779,1764571845416,-1575.36,0.00013964,2]
[395254780,1764571845427,-695.52666433,0.00013968,2]
[395254781,1764571845437,-1500.0,0.00013968,2]
[395254782,1764571845447,-1500.0,0.00013968,2]
[395254783,1764571845456,-415.43921071,0.00013968,2]
[395254784,1764571845466,-1500.0,0.00013968,2]
[395254785,1764571845476,-500.0,0.00013969,2]
[395254786,1764571845488,-500.0,0.00013969,2]
[395254787,1764571845499,-500.0,0.00013969,2]
[395254788,1764571845509,-255.0,0.00013975,2]
[395254789,1764571845519,-500.0,0.00013999,2]
[395254790,1764571845528,-500.0,0.00013999,2]
[395254791,1764571845538,-500.0,0.00013999,2]
[395254792,1764571845548,-500.3,0.00013999,2]
[395254793,1764571845558,-500.0,0.00013999,2]
[395254794,1764571845569,-500.0,0.00013999,2]
[395254795,1764571845579,-500.0,0.00013999,2]
[395254796,1764571845591,-500.0,0.00013999,2]
[395254797,1764571845600,-500.0,0.00013999,2]
[395254798,1764571845613,-500.0,0.00013999,2]
[395254799,1764571845624,-244945.62477027,0.00014,2]
[395254800,1764571845639,-12614.97504208,0.00014021,2]
[395254801,1764571845649,-1000.0,0.00014033,2]
[395254802,1764571845661,-417.0,0.00014055,2]
[395254803,1764571845671,-500.0,0.00014055,2]
[395254804,1764571845682,-1865.0,0.00014055,2]
[395254805,1764571845693,-420.0,0.00014104,2]
[395254806,1764571845703,-420.0,0.00014104,2]
[395254807,1764571845715,-500.0,0.00014106,2]
[395254808,1764571845725,-500.0,0.00014106,2]
[395254809,1764571845736,-500.0,0.00014106,2]
[395254810,1764571845746,-336.0,0.00014114,2]
[395254811,1764571845758,-500.0,0.00014117,2]
[395254812,1764571845769,-1680.0,0.00014145,2]
[395254813,1764571845782,-3055.60485506,0.00014153,2]
[395254814,1764571845794,-417.0,0.00014192,2]
[395254815,1764571845805,-500.0,0.00014192,2]
[395254816,1764571845815,-1865.0,0.00014192,2]
[395254817,1764571845826,-161.86739996,0.00014211,2]
[395254818,1764571845836,-462.66126224,0.00014217,2]
[395254819,1764571845846,-1575.36,0.00014238,2]
[395254820,1764571845857,-219.4928398,0.00014243,2]
[395254821,1764571845867,-500.0,0.00014243,2]
[395254822,1764571845877,-519.97529964,0.00014243,2]
[395254823,1764571845887,-600.0,0.00014247,2]
[395254824,1764571845898,-166.66,0.00014294,2]
[395254825,1764571845909,-417.0,0.00014329,2]
[395254826,1764571845921,-500.0,0.00014329,2]
[395254827,1764571845931,-1865.0,0.00014329,2]
[395254828,1764571845942,-37661.41393697,0.00014365,2]
[395254829,1764571845952,-500.0,0.0001438,2]
[395254830,1764571845962,-200.0,0.00014386,2]
[395254831,1764571845972,-500.0,0.00014386,2]
[395254832,1764571845982,-200.0,0.00014386,2]
[395254833,1764571845996,-12614.97504208,0.00014432,2]
[395254834,1764571846006,-417.0,0.00014466,2]
[395254835,1764571846016,-200.0,0.00014466,2]
[395254836,1764571846029,-1865.0,0.00014466,2]
[395254837,1764571846039,-3209.67101784,0.0001449,2]
[395254838,1764571846049,-1575.36,0.00014512,2]
[395254839,1764571846062,-2000.0,0.00014516,2]
[395254840,1764571846072,-1000.0,0.00014516,2]
[395254841,1764571846082,-1005.67913008,0.00014516,2]
[395254842,1764571846092,-203.73471508,0.00014517,2]
[395254843,1764571846104,-151.0,0.00014521,2]
[395254844,1764571846114,-2063.6036669,0.00014534,2]
[395254845,1764571846126,-678.05038299,0.00014587,2]
[395254846,1764571846136,-500.0,0.00014599,2]
[395254847,1764571846146,-500.0,0.00014599,2]
[395254848,1764571846157,-500.0,0.00014599,2]
[395254849,1764571846167,-500.0,0.00014599,2]
[395254850,1764571846177,-5156.82,0.00014599,2]
[395254851,1764571846187,-500.0,0.00014599,2]
[395254852,1764571846198,-500.0,0.00014599,2]
[395254853,1764571846212,-500.0,0.00014599,2]
[395254854,1764571846222,-417.0,0.00014603,2]
[395254855,1764571846232,-1865.0,0.00014603,2]
[395254857,1764571846243,-1460.77414547,0.00014685,2]
[395254859,1764571846254,-166.66,0.00014711,2]
[395254860,1764571846264,-417.0,0.0001474,2]
[395254861,1764571846274,-1865.0,0.0001474,2]